bitfinex/quotes_SOLUSD_20240818
["timestamp","ask_amount","ask_price","bid_price","bid_amount"]
[1724017045325,6.8329,146.35,146.27,15.4515]
[1724017045638,51.8334,146.34,146.27,15.4515]
[1724017052358,60.5834,146.34,146.27,15.4515]
[1724017052555,6.8339,146.33,146.27,15.4515]
[1724017052857,45.0,146.32,146.27,15.4515]
[1724017072799,53.75,146.32,146.27,15.4515]
[1724017073092,15.5856,146.3,146.24,16.5152]
[1724017073277,45.0,146.29,146.24,16.5152]
[1724017073589,51.8358,146.29,146.24,16.5152]
[1724017077602,6.8362,146.28,146.24,16.5152]
[1724017077772,45.0,146.27,146.24,16.5152]
[1724017078502,51.8366,146.27,146.23,0.8770602]
[1724017082382,6.8377,146.25,146.23,0.8770602]
[1724017082591,45.0,146.24,146.23,0.8770602]
[1724017083415,51.838,146.24,146.23,0.8770602]
[1724017086309,58.96979452,146.24,146.23,0.8770602]
[1724017086528,51.838,146.24,146.23,0.8770602]
[1724017088335,58.97008952,146.24,146.23,0.8770602]
[1724017095128,79.52008952,146.24,146.23,0.8770602]
[1724017104822,13.97008952,146.24,146.23,0.8770602]
[1724017108550,58.97008952,146.24,146.23,0.8770602]
[1724017109225,79.52008952,146.24,146.23,0.8770602]
[1724017109748,58.97008952,146.24,146.23,0.8770602]
[1724017110246,79.52008952,146.24,146.23,0.8770602]
[1724017114443,72.68208952,146.24,146.17,15.0518]
[1724017114641,65.55,146.23,146.17,15.0518]
[1724017114855,8.75,146.21,146.17,15.0518]
[1724017115038,45.0,146.2,146.17,15.0518]
[1724017115747,51.84,146.2,146.17,15.0518]
[1724017116368,51.84,146.2,146.13,22.4977]
[1724017117884,6.8404,146.19,146.13,15.9493]
[1724017118091,45.0,146.18,146.13,15.9493]
[1724017129284,51.8409,146.18,146.1,6.5204]
[1724017131602,51.8409,146.18,146.09,16.1472]
[1724017131603,60.5909,146.18,146.09,24.8972]
[1724017131798,60.5909,146.18,146.1,20.0]
[1724017135185,53.75,146.18,146.1,20.0]
[1724017135492,60.591,146.18,146.1,20.0]
[1724017135894,6.8414,146.17,146.08,0.8770602]
[1724017136190,45.0,146.16,146.08,0.8770602]
[1724017136384,45.0,146.16,146.08,20.8770602]
[1724017137201,60.5922,146.16,146.08,0.8770602]
[1724017137503,6.8423,146.15,146.08,0.8770602]
[1724017137682,45.0,146.14,146.08,0.8770602]
[1724017138314,68.3643,146.14,146.08,0.8770602]
[1724017138609,77.1143,146.14,146.08,0.8770602]
[1724017139303,6.8432,146.13,146.08,0.8770602]
[1724017139499,45.0,146.12,146.08,0.8770602]
[1724017140292,51.8437,146.12,146.08,0.8770602]
[1724017141608,6.8442,146.11,146.08,0.8770602]
[1724017141807,45.0,146.1,146.08,0.8770602]
[1724017143599,15.5937,146.12,146.08,0.8770602]
[1724017143600,45.0,146.11,146.08,0.8770602]
[1724017144713,51.8443,146.11,146.08,0.8770602]
[1724017144919,13.1859,146.1,146.08,0.8770602]
[1724017145116,45.0,146.09,146.08,0.8770602]
[1724017150117,22.8628,146.14,146.08,0.8770602]
[1724017150314,6.8437,146.12,146.08,0.8770602]
[1724017150530,15.5937,146.12,146.08,0.8770602]
[1724017151210,6.8442,146.11,146.08,0.8770602]
[1724017151529,15.5942,146.11,146.08,0.8770602]
[1724017151832,45.0,146.1,146.08,0.8770602]
[1724017152326,51.8447,146.1,146.08,0.8770602]
[1724017153041,15.595,146.09,146.08,0.8770602]
[1724017153234,60.595,146.09,146.08,0.8770602]
[1724017155333,73.8238,146.09,146.08,0.8770602]
[1724017155537,102.5738,146.09,146.08,0.8770602]
[1724017155718,123.1238,146.09,146.08,0.8770602]
[1724017155934,20.55,146.07,146.0,0.03]
[1724017156114,15.597,146.05,146.0,0.03]
[1724017156312,60.5974,146.04,146.0,0.03]
[1724017156535,45.0,146.04,146.0,0.03]
[1724017156724,60.5974,146.04,146.0,0.03]
[1724017157405,45.0,146.04,146.0,0.03]
[1724017157830,45.0,146.05,146.0,0.03]
[1724017158014,51.8471,146.05,146.0,0.03]
[1724017161723,45.0,146.05,146.0,0.03]
[1724017163844,45.0,146.06,146.0,0.03]
[1724017164928,45.0,146.07,146.0,0.03]
[1724017165634,51.846,146.07,146.0,0.03]
[1724017166752,45.0,146.07,146.0,0.03]
[1724017167049,51.846,146.07,146.0,0.03]
[1724017167347,59.01131833,146.07,146.0,0.03]
[1724017168325,6.8466,146.06,146.0,0.03]
[1724017168635,45.0,146.05,146.0,0.03]
[1724017168840,59.01141833,146.07,146.0,0.03]
[1724017169227,52.16531833,146.07,146.0,0.03]
[1724017169938,45.0,146.07,146.0,0.03]
[1724017170231,45.0,146.08,146.0,0.03]
[1724017170748,20.0,146.07,146.0,0.03]
[1724017170932,45.0,146.06,146.0,0.03]
[1724017171450,6.847,146.05,146.0,0.03]
[1724017172425,51.8466,146.06,146.0,0.03]
[1724017174175,60.5966,146.06,146.0,0.03]
[1724017174661,6.847,146.05,146.0,0.03]
[1724017174860,6.8488,146.01,146.0,0.03]
[1724017175323,51.8488,146.01,146.0,0.03]
[1724017179555,8.75,146.02,146.0,0.03]
[1724017179761,15.5986,146.02,146.0,0.03]
[1724017179936,6.8488,146.01,146.0,0.03]
[1724017180138,21.8086,146.01,145.87,16.1646]
[1724017180445,21.8086,146.01,145.89,6.5483]
[1724017180446,8.75,145.98,145.89,6.5483]
[1724017180642,26.8494,146.0,145.9,8.75]
[1724017180849,28.75,146.0,145.94,0.3770602]
[1724017181050,45.0,145.99,145.94,0.3770602]
[1724017181246,20.0,145.98,145.94,0.3770602]
[1724017181449,7.16681848,146.0,145.95,16.1646]
[1724017181679,6.849,146.01,145.95,16.1646]
[1724017182052,6.8484,146.02,145.95,16.1646]
[1724017182363,26.849,146.01,145.95,16.1646]
[1724017183563,45.0,146.0,145.95,16.1646]
[1724017184745,45.0,146.0,145.95,22.7129]
[1724017186361,51.8493,146.0,145.95,22.7129]
[1724017191366,15.5988,146.01,145.95,22.7129]
[1724017191555,6.8488,146.01,145.95,22.7129]
[1724017192068,7.16439364,146.0,145.95,22.7129]
[1724017200440,11.47829184,146.02,145.95,22.7129]
[1724017200441,15.5978,146.04,145.95,31.4629]
[1724017200617,14.0052849,146.05,145.95,31.4629]
[1724017200816,19.15825387,146.07,145.99,6.2738]
[1724017200817,11.478292,146.07,145.99,6.2738]
[1724017201106,7.15925768,146.07,145.99,15.0238]
[1724017201405,7.15925768,146.07,146.0,20.0]
[1724017202590,8.75,146.06,145.99,6.2738]
[1724017204404,7.15925768,146.07,145.99,6.2738]
[1724017204405,8.75,146.02,145.99,6.2738]
[1724017205285,8.75,146.03,145.99,6.2738]
[1724017209380,8.75,146.03,145.98,16.666]
[1724017210805,8.75,145.99,145.95,6.0162]
[1724017211728,6.8488,146.01,145.94,16.0301602]
[1724017211908,8.75,145.99,145.94,16.0301602]
[1724017212306,8.75,145.97,145.94,0.3770602]
[1724017214209,51.8512,145.96,145.94,0.3770602]
[1724017215711,6.8516,145.95,145.94,0.3770602]
[1724017215890,60.6016,145.95,145.94,0.3770602]
[1724017218205,51.8516,145.95,145.94,0.3770602]
[1724017218736,45.0,145.95,145.94,0.3770602]
[1724017220731,6.8513,145.96,145.94,0.3770602]
[1724017220931,6.851,145.97,145.94,0.3770602]
[1724017221135,45.0,145.96,145.94,0.3770602]
[1724017221803,6.8516,145.95,145.94,0.3770602]
[1724017222007,51.8516,145.95,145.94,0.3770602]
[1724017229326,6.8512,145.96,145.94,0.3770602]
[1724017230210,15.91311861,145.98,145.94,0.3770602]
[1724017230432,6.8508,145.97,145.94,0.3770602]
[1724017230635,22.76351861,145.98,145.94,0.3770602]
[1724017230812,7.16311861,145.98,145.94,0.3770602]
[1724017231013,6.8496,146.0,145.94,0.3770602]
[1724017232337,7.16140801,146.01,145.94,0.3770602]
[1724017234844,15.5984,146.02,145.94,0.3770602]
[1724017238634,51.8489,146.01,145.94,0.3770602]
[1724017239443,6.8484,146.02,145.94,0.3770602]
[1724017239627,8.75,146.01,145.94,0.3770602]
[1724017240548,22.75699578,146.03,145.95,6.4738]
[1724017240842,8.75,146.01,145.95,6.4738]
[1724017241036,45.0,146.0,145.95,6.4738]
[1724017242238,8.75,146.01,145.95,6.4738]
[1724017250723,14.00699578,146.03,145.96,16.4557]
[1724017250724,7.15899578,146.03,145.96,16.4557]
[1724017251227,24.42326903,146.04,145.96,16.4557]
[1724017251839,8.82566903,146.04,145.96,16.4557]
[1724017252022,17.57566903,146.04,145.96,16.4557]
[1724017253236,45.0,146.03,145.96,16.4557]
[1724017254852,24.42306903,146.04,145.96,16.4557]
[1724017255355,45.0,146.03,145.96,16.4557]
[1724017263950,45.0,146.04,145.96,16.4557]
[1724017267344,22.75704437,146.06,145.96,16.4557]
[1724017268880,45.0,146.05,145.96,16.4557]
[1724017269958,7.16044437,146.06,145.97,8.75]
[1724017270360,8.75,146.05,145.96,16.4557]
[1724017270785,22.8330134,146.06,145.96,16.4557]
[1724017270954,45.0,146.05,145.96,16.4557]
[1724017272473,6.8474,146.04,145.96,16.4557]
[1724017272677,45.0,146.03,145.96,16.4557]
[1724017276580,51.8474,146.04,145.96,16.4557]
[1724017279965,8.75,146.05,145.96,16.4557]
[1724017280167,15.5973,146.05,145.96,25.2057]
[1724017281291,45.0,146.04,145.96,25.2057]
[1724017282964,22.75704437,146.06,145.96,25.2057]
[1724017283168,45.0,146.05,145.96,25.2057]
[1724017288790,14.00704437,146.06,145.96,25.2057]
[1724017288968,45.0,146.05,145.96,25.2057]
[1724017289570,14.00704437,146.06,145.96,25.2057]
[1724017289970,7.16044437,146.06,145.97,16.4042]
[1724017291181,7.16044437,146.06,145.98,8.75]
[1724017291493,7.16044437,146.06,145.99,6.1312]
[1724017291822,7.16044437,146.06,146.0,15.1183]
[1724017305210,8.75,146.05,146.0,15.1183]
[1724017306832,6.8475,146.04,146.0,15.1183]
[1724017311745,51.848,146.03,145.96,22.0192]
[1724017348346,72.448,146.03,145.96,22.0192]
[1724017348545,51.848,146.03,145.96,22.0192]
[1724017360483,45.0,146.03,145.97,8.75]
[1724017360685,3.57278029,146.06,145.97,8.75]
[1724017360871,6.8477,146.04,145.97,8.75]
[1724017362400,14.00415559,146.05,145.97,8.75]
[1724017372006,6.8475,146.04,145.97,8.75]
[1724017374805,6.8475,146.04,145.96,22.0192]
[1724017374990,7.15685559,146.05,145.97,8.75]
[1724017375309,6.8477,146.04,145.97,8.75]
[1724017384222,6.848,146.03,145.97,8.75]
[1724017385623,6.8486,146.02,145.96,22.0192]
[1724017397212,7.15727087,146.03,145.96,22.0192]
[1724017397417,14.00527087,146.03,145.96,22.0192]
[1724017398737,6.8484,146.02,145.96,22.0192]
[1724017401536,7.15727087,146.03,145.96,22.0192]
[1724017401908,14.00547087,146.03,145.96,22.0192]
[1724017403635,14.00547087,146.03,145.97,8.75]
[1724017405333,14.00547087,146.03,145.96,22.0192]
[1724017412928,6.8484,146.02,145.96,22.0192]
[1724017414630,6.8484,146.02,145.96,15.6921]
[1724017423959,6.8485,146.02,145.96,15.6921]
[1724017434317,14.00527087,146.03,145.96,15.6921]
[1724017436451,14.00527087,146.03,145.97,8.75]
[1724017437472,6.8491,146.01,145.96,15.6921]
[1724017437648,6.8491,146.01,145.96,24.4421]
[1724017440449,6.8485,146.02,145.96,24.4421]
[1724017441161,6.8489,146.01,145.96,15.6921]
[1724017447856,6.8485,146.02,145.96,15.6921]
[1724017453363,14.00517087,146.03,145.96,22.1136]
[1724017453558,14.00517087,146.03,145.96,30.8636]
[1724017460293,14.00517087,146.03,145.96,22.1136]
[1724017460587,14.00517087,146.03,145.96,30.8636]
[1724017467291,7.15727087,146.03,145.98,8.75]
[1724017470811,7.15727087,146.03,145.96,30.8636]
[1724017474115,6.8475,146.04,145.96,30.8636]
[1724017486818,14.00634461,146.06,146.0,14.9676]
[1724017488525,7.15954461,146.06,146.0,14.9676]
[1724017495352,7.15954461,146.06,146.04,8.75]
[1724017498646,7.15954461,146.06,146.05,16.4313]
[1724017499232,7.15954461,146.06,146.05,61.4313]
[1724017500847,6.8447,146.1,146.05,61.4313]
[1724017501939,6.8451,146.09,146.05,16.4313]
[1724017503857,6.846,146.07,146.05,16.4313]
[1724017504153,6.8456,146.08,146.05,16.4313]
[1724017504546,6.8462,146.07,146.01,15.6752]
[1724017504725,6.8465,146.06,146.01,15.6752]
[1724017504931,8.75,146.08,146.01,15.6752]
[1724017504932,6.847,146.05,146.01,15.6752]
[1724017505249,8.75,146.08,145.97,22.3182]
[1724017505250,8.75,146.06,145.97,22.3182]
[1724017506045,6.848,146.03,145.97,22.3182]
[1724017506441,6.8484,146.02,145.97,22.3182]
[1724017506632,8.75,146.06,145.97,22.3182]
[1724017506633,6.8488,146.01,145.97,22.3182]
[1724017507665,6.8488,146.01,145.97,15.6752]
[1724017507958,8.75,146.02,145.94,0.3770602]
[1724017508133,6.8498,145.99,145.94,0.3770602]
[1724017510858,8.75,146.02,145.94,0.3770602]
[1724017510859,6.8494,146.0,145.94,0.3770602]
[1724017513461,6.8494,146.0,145.94,9.1270602]
[1724017514659,6.8494,146.0,145.94,0.3770602]
[1724017514841,6.8494,146.0,145.94,9.1270602]
[1724017517376,6.8497,145.99,145.94,9.1270602]
[1724017517673,6.8497,145.99,145.94,0.3770602]
[1724017532859,6.8498,145.99,145.94,0.3770602]
[1724017540487,8.75,146.02,145.94,0.3770602]
[1724017540488,6.8507,145.97,145.94,0.3770602]
[1724017540788,8.75,146.0,145.94,0.3770602]
[1724017540985,6.8505,145.98,145.94,0.3770602]
[1724017542176,53.75,146.0,145.94,0.3770602]
[1724017542177,6.8507,145.97,145.94,0.3770602]
[1724017552106,6.8512,145.96,145.94,0.3770602]
[1724017555413,6.8516,145.95,145.94,0.3770602]
[1724017571193,71.8516,145.95,145.94,0.3770602]
[1724017573131,71.8516,145.95,145.85,15.8243]
[1724017573132,6.8535,145.91,145.85,15.8243]
[1724017578407,6.8529,145.93,145.86,45.0]
[1724017578608,20.0,145.92,145.86,45.0]
[1724017582327,26.8531,145.92,145.86,45.0]
[1724017582497,20.0,145.92,145.86,45.0]
[1724017583430,26.8531,145.92,145.86,45.0]
[1724017589525,26.8531,145.92,145.85,24.5743]
[1724017592015,20.0,145.92,145.85,24.5743]
[1724017592216,6.8534,145.92,145.85,24.5743]
[1724017593816,6.8534,145.92,145.83,8.75]
[1724017594013,6.8531,145.92,145.85,8.75]
[1724017594226,20.0,145.94,145.85,8.75]
[1724017594538,20.0,145.95,145.85,8.75]
[1724017594741,6.8531,145.92,145.85,8.75]
[1724017597343,6.8531,145.92,145.84,45.0]
[1724017604140,6.8535,145.91,145.84,45.0]
[1724017605050,6.8531,145.92,145.84,45.0]
[1724017609936,6.8535,145.91,145.84,45.0]
[1724017612426,6.8531,145.92,145.84,45.0]
[1724017614437,6.8531,145.92,145.83,53.75]
[1724017614639,6.8535,145.91,145.84,20.0]
[1724017615056,6.8535,145.91,145.83,53.75]
[1724017615260,6.8535,145.91,145.84,20.0]
[1724017623767,6.8531,145.92,145.84,20.0]
[1724017631081,6.8537,145.91,145.84,20.0]
[1724017631476,15.6419,145.92,145.84,20.0]
[1724017631978,6.8536,145.91,145.84,20.0]
[1724017635356,6.854,145.9,145.84,20.0]
[1724017635553,8.75,145.9,145.79,0.8770602]
[1724017635754,6.8549,145.88,145.79,9.6270602]
[1724017636250,6.8549,145.88,145.79,0.8770602]
[1724017636251,41.8008,145.87,145.79,0.8770602]
[1724017636669,6.8562,145.86,145.79,0.8770602]
[1724017637562,6.8562,145.86,145.79,20.8770602]
[1724017638289,27.4567,145.85,145.79,20.8770602]
[1724017638458,6.8567,145.85,145.79,0.8770602]
[1724017641271,8.75,145.86,145.79,0.8770602]
[1724017641272,6.8568,145.84,145.79,0.8770602]
[1724017658394,6.8573,145.83,145.79,0.8770602]
[1724017658592,8.75,145.84,145.79,0.8770602]
[1724017658593,15.6071,145.84,145.79,0.8770602]
[1724017658783,45.0,145.83,145.79,0.8770602]
[1724017659001,15.6071,145.84,145.79,0.8770602]
[1724017659301,45.0,145.83,145.79,0.8770602]
[1724017660803,21.9081,145.82,145.79,0.8770602]
[1724017663219,15.7766,145.82,145.79,0.8770602]
[1724017665711,51.8573,145.83,145.79,0.8770602]
[1724017669223,26.858,145.82,145.79,0.8770602]
[1724017669407,21.2577,145.85,145.79,0.8770602]
[1724017669612,6.8569,145.84,145.79,0.8770602]
[1724017669814,26.8569,145.84,145.79,0.8770602]
[1724017670699,20.0,145.84,145.79,0.8770602]
[1724017677335,26.8568,145.84,145.79,0.8770602]
[1724017682239,20.0,145.84,145.79,0.8770602]
[1724017682450,26.8568,145.84,145.79,0.8770602]
[1724017683929,20.0,145.84,145.79,0.8770602]
[1724017685733,26.8568,145.84,145.79,0.8770602]
[1724017686450,20.0,145.84,145.79,0.8770602]
[1724017690130,22.77552175,145.84,145.79,0.8770602]
[1724017691539,29.63252175,145.84,145.79,0.8770602]
[1724017693626,6.8573,145.83,145.79,0.8770602]
[1724017694439,15.6073,145.83,145.79,0.8770602]
[1724017696661,6.8577,145.82,145.79,0.8770602]
[1724017696851,26.8577,145.82,145.79,0.8770602]
[1724017699365,20.0,145.82,145.79,0.8770602]
[1724017700363,8.75,145.81,145.79,0.8770602]
[1724017702075,20.0,145.82,145.79,0.8770602]
[1724017702251,28.75,145.82,145.79,0.8770602]
[1724017706869,35.6078,145.82,145.79,0.8770602]
[1724017711356,15.6078,145.82,145.79,0.8770602]
[1724017712147,6.8582,145.81,145.79,0.8770602]
[1724017712547,8.75,145.8,145.79,0.8770602]
[1724017720774,6.8582,145.81,145.79,0.8770602]
[1724017720973,8.75,145.8,145.79,0.8770602]
[1724017721197,80.6087,145.8,145.79,0.8770602]
[1724017721397,26.8587,145.8,145.79,0.8770602]
[1724017721587,35.6087,145.8,145.79,0.8770602]
[1724017727779,15.6087,145.8,145.79,0.8770602]
[1724017728195,35.6087,145.8,145.79,0.8770602]
[1724017728995,26.8587,145.8,145.79,0.8770602]
[1724017729503,35.6087,145.8,145.79,0.8770602]
[1724017735112,26.8587,145.8,145.79,0.8770602]
[1724017735315,35.6087,145.8,145.79,0.8770602]
[1724017739419,26.8587,145.8,145.79,0.8770602]
[1724017739610,35.6087,145.8,145.79,0.8770602]
[1724017743508,28.75,145.8,145.79,0.8770602]
[1724017745899,35.6087,145.8,145.79,0.8770602]
[1724017747428,28.75,145.8,145.79,0.8770602]
[1724017751106,6.8579,145.82,145.79,0.8770602]
[1724017751412,8.75,145.81,145.79,0.8770602]
[1724017760039,14.0104869,145.83,145.79,0.8770602]
[1724017760222,8.75,145.81,145.79,0.8770602]
[1724017763133,22.7604869,145.83,145.79,0.8770602]
[1724017770561,8.75,145.81,145.79,0.8770602]
[1724017773066,7.1530869,145.83,145.79,0.8770602]
[1724017773662,8.75,145.84,145.79,0.8770602]
[1724017773867,20.0,145.83,145.79,0.8770602]
[1724017792694,8.75,145.82,145.79,0.8770602]
[1724017794707,20.0,145.83,145.79,0.8770602]
[1724017794913,20.0,145.84,145.79,0.8770602]
[1724017795113,28.75,145.84,145.79,0.8770602]
[1724017796310,35.6069,145.84,145.79,0.8770602]
[1724017796514,26.8569,145.84,145.79,0.8770602]
[1724017796711,8.75,145.83,145.79,0.8770602]
[1724017802517,26.0896,145.84,145.79,0.8770602]
[1724017802721,8.75,145.8,145.79,0.8770602]
[1724017803096,26.8587,145.8,145.79,0.8770602]
[1724017803422,20.0,145.8,145.79,0.8770602]
[1724017803713,26.8587,145.8,145.79,0.8770602]
[1724017804698,71.8587,145.8,145.79,0.8770602]
[1724017805825,15.6109,145.76,145.69,15.1799]
[1724017806121,20.0,145.75,145.69,15.1799]
[1724017807720,26.8611,145.75,145.69,15.1799]
[1724017810931,15.6115,145.74,145.65,16.3141]
[1724017811130,15.6115,145.74,145.66,20.0]
[1724017813028,6.862,145.73,145.66,20.0]
[1724017815503,8.75,145.72,145.66,20.0]
[1724017815703,8.75,145.72,145.64,20.8770602]
[1724017816111,6.29,145.74,145.64,0.8770602]
[1724017816112,31.499,145.7,145.64,0.8770602]
[1724017817244,6.29,145.69,145.64,0.8770602]
[1724017817618,6.29,145.69,145.59,24.4411602]
[1724017818824,6.29,145.69,145.6,20.0]
[1724017821014,8.75,145.66,145.56,15.5712]
[1724017821342,8.75,145.66,145.56,24.3212]
[1724017822335,8.75,145.66,145.57,20.0]
[1724017822635,8.75,145.66,145.58,45.0]
[1724017823035,6.8644,145.68,145.58,45.0]
[1724017823235,73.75,145.67,145.57,20.0]
[1724017823536,73.75,145.67,145.57,28.75]
[1724017823746,28.75,145.67,145.57,28.75]
[1724017823948,6.3606,145.65,145.57,20.0]
[1724017824150,6.3606,145.65,145.52,15.5712]
[1724017824151,6.3606,145.65,145.56,8.75]
[1724017824329,6.3606,145.65,145.57,20.0]
[1724017824721,15.1106,145.65,145.57,20.0]
[1724017824922,15.1106,145.65,145.55,8.75]
[1724017825119,15.1106,145.65,145.56,65.0]
[1724017825953,6.3606,145.65,145.56,65.0]
[1724017828151,6.3606,145.65,145.56,73.75]
[1724017829037,6.3606,145.65,145.56,65.0]
[1724017829228,22.1761,145.7,145.59,8.75]
[1724017829420,22.1761,145.7,145.6,45.0]
[1724017829845,22.1761,145.7,145.61,20.0]
[1724017830032,22.1761,145.7,145.62,45.0]
[1724017831162,22.1761,145.7,145.61,20.0]
[1724017831323,22.1761,145.7,145.59,8.75]
[1724017831526,30.9261,145.7,145.6,65.0]
[1724017832133,30.9261,145.7,145.58,1.37316899]
[1724017832337,20.0,145.69,145.57,21.7686]
[1724017832544,30.9261,145.7,145.59,8.75]
[1724017832846,30.9261,145.7,145.6,45.0]
[1724017833744,30.9261,145.7,145.61,20.0]
[1724017833939,30.9261,145.7,145.62,45.0]
[1724017843442,30.9261,145.7,145.61,20.0]
[1724017844056,20.0,145.69,145.58,8.75]
[1724017844238,20.0,145.69,145.59,45.0]
[1724017844433,28.75,145.69,145.59,45.0]
[1724017845348,28.75,145.69,145.6,20.0]
[1724017848136,22.1761,145.7,145.6,20.0]
[1724017848341,30.9261,145.7,145.61,45.0]
[1724017848550,30.9261,145.7,145.62,20.0]
[1724017850538,30.9261,145.7,145.59,20.0]
[1724017850735,30.9261,145.7,145.6,45.0]
[1724017851043,22.1761,145.7,145.61,20.0]
[1724017851368,22.1761,145.7,145.62,45.0]
[1724017855043,22.1761,145.7,145.61,20.0]
[1724017855244,22.1761,145.7,145.62,45.0]
[1724017856069,22.1761,145.7,145.61,45.0]
[1724017856288,22.1761,145.7,145.62,20.0]
[1724017860484,22.1761,145.7,145.63,46.37294016]
[1724017860648,22.1761,145.7,145.64,20.0]
[1724017860841,22.1761,145.7,145.65,45.0]
[1724017861079,260.97278029,145.79,145.65,53.75]
[1724017861080,7.17866574,145.76,145.65,53.75]
[1724017861288,30.2945,145.77,145.66,21.37276902]
[1724017861452,37.1547,145.77,145.67,53.75]
[1724017861653,28.4047,145.77,145.68,20.0]
[1724017861862,8.75,145.76,145.68,20.0]
[1724017862063,8.75,145.76,145.69,1.37250508]
[1724017863503,28.4047,145.77,145.69,1.37250508]
[1724017863655,37.1547,145.77,145.69,1.37250508]
[1724017865367,36.6547,145.77,145.69,1.37250508]
[1724017866257,21.0445,145.77,145.69,45.0]
[1724017866654,21.0445,145.77,145.7,20.0]
[1724017867082,21.0445,145.77,145.71,45.0]
[1724017868160,21.0445,145.77,145.72,20.0]
[1724017868763,21.0445,145.77,145.71,45.0]
[1724017868967,21.0445,145.77,145.72,20.0]
[1724017873292,21.0445,145.77,145.73,45.0]
[1724017879892,16.4117,145.81,145.73,53.75]
[1724017880096,23.0271,145.81,145.73,45.0]
[1724017880277,23.0271,145.81,145.74,20.0]
[1724017880485,23.0271,145.81,145.75,45.0]
[1724017884688,22.5271,145.81,145.75,45.0]
[1724017888102,22.5271,145.81,145.76,8.75]
[1724017888275,22.5271,145.81,145.77,45.0]
[1724017897529,22.5271,145.81,145.76,45.0]
[1724017897831,22.5271,145.81,145.75,53.75]
[1724017909068,22.5271,145.81,145.75,45.0]
[1724017909364,22.5271,145.81,145.75,53.75]
[1724017910361,22.5271,145.81,145.74,20.0]
[1724017910559,16.3973,145.8,145.71,8.75]
[1724017910753,16.3973,145.8,145.72,20.0]
[1724017911449,16.3973,145.8,145.73,8.75]
[1724017911652,16.3973,145.8,145.74,20.0]
[1724017925289,16.3973,145.8,145.75,45.0]
[1724017927757,16.3973,145.8,145.75,53.75]
[1724017938072,16.3973,145.8,145.77,8.75]
[1724017959240,16.3973,145.8,145.76,8.75]
[1724017959404,16.3973,145.8,145.77,65.0]
[1724017970424,16.3973,145.8,145.77,45.0]
[1724017970635,16.3973,145.8,145.76,45.0]
[1724017970926,16.3973,145.8,145.77,20.0]
[1724017980310,6.6154,145.81,145.77,28.75]
[1724017980635,15.0839,145.84,145.79,8.75]
[1724017980806,15.0839,145.84,145.8,20.0]
[1724017981010,15.0839,145.84,145.81,45.0]
[1724017981436,15.0839,145.84,145.81,53.75]
[1724017984732,15.0839,145.84,145.74,25.20873998]
[1724017984928,15.0839,145.84,145.77,8.75]
[1724017985929,15.0839,145.84,145.74,8.60513998]
[1724017986131,6.3937,145.83,145.76,8.75]
[1724017987257,6.3937,145.83,145.77,20.0]
[1724018004689,15.7216,145.78,145.66,31.14044]
[1724018004994,15.7216,145.78,145.67,8.60513998]
[1724018005169,15.7216,145.78,145.7,8.75]
[1724018006078,15.7216,145.78,145.71,20.0]
[1724018019024,15.7216,145.78,145.72,53.75]
[1724018019198,15.7216,145.78,145.73,20.0]
[1724018019399,15.7216,145.78,145.74,45.0]
[1724018021121,15.7216,145.78,145.73,20.0]
[1724018034763,15.7216,145.78,145.74,20.0]